{"text_format":"2","workbook":"xlsx","n_sheets":2,"sheets":["Elektromos","Pneumatika"],"not_rendered":{"charts":0,"images":0,"macros":0,"external_links":0,"defined_names":0,"comments":0,"pivot_tables":0},"unopened":[],"bounds":{"document_bytes":16777216,"sheet_cells":100000,"run_cost":"one","rows_first":2000,"rows_last":500,"rows_between":2000,"halvings":0,"cell_chars":16384,"cell_head_chars":4096},"cells_cut":0,"cells_raw":0,"read":"whole","date_system":"1900"}

{"sheet":"Elektromos","index":0,"n_rows":17,"n_cols":8,"rows_kept":17,"cut":false,"hidden":false,"merged":[]}
[]
["Ssz.","Tétel szövege","Menny.","Egység","Anyag egységár","Díj egységre","Anyag összesen","Díj összesen"]
["1.","Vezetékek, kábelek és szerelvények bontása; vörösréz vagy alumínium vezeték leszerelése védőcsőből kihúzva, 10 mm2-ig",100,"m",null,null,{"$f":"ROUND(C3*E3, 0)","v":0},{"$f":"ROUND(C3*F3, 0)","v":0}]
["2.","A szinti elosztóból leágazás készítése a laborba kerülő al-elosztóhoz (3 fázisú javasolt). A szinti elosztó és az al-elosztó közötti kábelezés kiépítése ",1,"klt",null,null,0,0]
["3.","Túlfeszültség levezetéssel rendelkező,kapcsolható konnektor elosztó - min. 5 villásdugó fogadására képes ( 4 db fantomfej csatlakozik 1 elosztóba), szereléssel. ",0,"db",null,null,0,0]
["4.","Műanyag vezetékcsatorna és elhelyezése,  elkészített tartószerkezetre szerelve, idomdarabokkal, szélesség:  100 mm, fedéllel, fehér",30,"m",null,null,0,0]
["5.","Kábelszerű vezeték elhelyezése előre elkészített tartószerkezetre, 1-12 erű rézvezetővel, elágazó dobozokkal és kötésekkel, szigetelési elenállás méréssel, a szerelvényekhez csatlakozó vezetékvégek bekötése nélkül, kábeltípus, keresztmetszet: MT 3x 2,5 mm2",150,"m",null,null,0,0]
["6.","Energia oszlop a fantomfej csoportokhoz mennyezetre rögzítve, 2m-es hosszúságú, műanyag csatorna rögzíthetőséggel.",2,"db",null,null,0,0]
["7.","Komplett világítási  és telekommunikációs szerelvények; Csatlakozóaljzat elhelyezése, 16A, földelt, egyes csatlakozóaljzat (2P+F) LEGRAND Valena 2P+F csatlakozóaljzat fehér IP44",4,"db",null,null,0,0]
["8.","Telekommunikációs csatlakozóaljzat elhelyezése LEGRAND Valena 2xRJ45 LCS2 Cat5 e F/UTP informatikai csatlakozóaljzat, fehér ",4,"db",null,null,0,0]
["9.","Strukturált adatátviteli kábel elhelyezése rézvezetővel, kábeltálcára vagy kábelcsatornába fektetve, szerelt patch kábel, 100 MHz átviteli sebesség Cat.5e F/UTP patch kábel szerelt, F/UTP cat 5e, PVC, szürke,1 m",4,"db",null,null,0,0]
["10.","Helyiség-konnektor al-elosztó elhelyezése, IP31 védettséggel, a szükséges túláram védelemmel, bekötéssel, tartós feliratokkal, kompletten. Falon kívüli. ",1,"db",null,null,0,0]
["11.","Leválasztó kapcsoló (3F) kiépítése a fantomfejes csatlakozások áramtalanítására",1,"db",null,null,0,0]
["12.","Adatátviteli kábel elhelyezése védőcsőbe húzva vagy vezetékcsatornába fektetve, strukturált adatátviteli kábel strukturált számítógépes adatátviteli hálózatokhoz, alufólia árnyékolással,  PannonCom-Kábel CAT5e F/UTP strukturált kábel",50,"m",null,null,0,0]
["13.","A terem közepén lévő projektor állvány, elektromos tápellátás, csatlakozók áthelyezése a megrendelő által kijelölt helyre- helységen belül-",1,"klt",null,null,0,0]
["14.","Érintésvédelmi mérés és jegyzőkönyv készítése a vállalási terjedelemre",1,"klt",null,null,{"$f":"ROUND(C16*E16, 0)","v":0},{"$f":"ROUND(C16*F16, 0)","v":0}]
["15.","Elektromos megvalósulási dokumentáció készítése",1,"klt",null,null,0,0]

{"sheet":"Pneumatika","index":1,"n_rows":6,"n_cols":8,"rows_kept":6,"cut":false,"hidden":false,"merged":[]}
[]
["Ssz.","Tétel szövege","Menny.","Egység","Anyag egységár","Díj egységre","Anyag összesen","Díj összesen"]
["1.","Levegőcsövek, csatlakozók bontása, szétszedése (gerinc és leágazások egyaránt)",1,"klt",null,null,{"$f":"ROUND(C3*E3, 0)","v":0},{"$f":"ROUND(C3*F3, 0)","v":0}]
["2.","Fantomfej berendezések levegős tápellátás gerincének kiépítése az energiaoszlopok aljáig, munkaállomások számára csatlakozási lehetőség kialakítása ",1,"klt",null,null,{"$f":"ROUND(C4*E4, 0)","v":0},{"$f":"ROUND(C4*F4, 0)","v":0}]
["3.","A fantomfejek levegős ellátásának csoportos leszakaszolásához levegő elzáró beépítése (gerincbe)",2,"db",null,null,0,0]
["4. ","A helységbe bejövő sűrített levegő gerincre reduktor/nyomás beállító /szűrő/leválasztó beépítése (FESTO)",1,"db",null,null,0,0]